fUST/lending_fUST_20250313
["ID","MTS","AMOUNT","RATE_DAILY","PERIOD"]
[356026766,1741805439606,-500.0,0.00021917,2]
[356026767,1741805439615,-854.37,0.00021917,2]
[356026768,1741805439624,-500.0,0.00021917,2]
[356026769,1741805439634,-2583.8,0.00021917,2]
[356026770,1741805439644,-500.0,0.00021917,2]
[356026771,1741805439653,-1737.24,0.00021917,2]
[356026772,1741805439663,-500.0,0.00021917,2]
[356026773,1741805439672,-500.0,0.00021917,2]
[356026774,1741805439681,-500.0,0.00021917,2]
[356026775,1741805439693,-500.0,0.00021917,2]
[356026776,1741805439703,-500.0,0.00021917,2]
[356026777,1741805439713,-500.0,0.00021917,2]
[356026778,1741805439722,-841.58,0.00021917,2]
[356026779,1741805439732,-500.0,0.00021917,2]
[356026780,1741805439742,-196.38011556,0.00021917,2]
[356026781,1741805439751,-500.0,0.00021917,2]
[356026782,1741805439761,-502.93597875,0.00021917,2]
[356026783,1741805439770,-500.0,0.00021917,2]
[356026784,1741805439779,-500.0,0.00021917,2]
[356026785,1741805439789,-500.0,0.00021917,2]
[356026786,1741805439799,-500.0,0.00021917,2]
[356026787,1741805439809,-500.0,0.00021917,2]
[356026788,1741805439818,-694.74,0.00021917,2]
[356026789,1741805439828,-500.0,0.00021917,2]
[356026790,1741805439838,-500.0,0.00021917,2]
[356026791,1741805439848,-500.0,0.00021917,2]
[356026792,1741805439857,-500.0,0.00021917,2]
[356026793,1741805439867,-500.0,0.00021917,2]
[356026794,1741805439876,-500.0,0.00021917,2]
[356026795,1741805439886,-575.76,0.00021917,2]
[356026796,1741805439896,-500.0,0.00021917,2]
[356026797,1741805439905,-500.0,0.00021917,2]
[356026798,1741805439914,-500.0,0.00021917,2]
[356026799,1741805439925,-500.0,0.00021917,2]
[356026800,1741805439935,-500.0,0.00021917,2]
[356026801,1741805439946,-573.41616792,0.00021917,2]
[356026802,1741805439955,-659.9,0.00021917,2]
[356026803,1741805439966,-1625.71,0.00021917,2]
[356026804,1741805439975,-500.0,0.00021917,2]
[356026805,1741805439985,-673.24,0.00021917,2]
[356026806,1741805439995,-1030.07,0.00021917,2]
[356026807,1741805440005,-500.0,0.00021917,2]
[356026808,1741805440015,-500.0,0.00021917,2]
[356026809,1741805440024,-500.0,0.00021917,2]
[356026810,1741805440033,-2568.43,0.00021917,2]
[356026811,1741805440043,-500.0,0.00021917,2]
[356026812,1741805440053,-500.0,0.00021917,2]
[356026813,1741805440062,-160.38,0.00021917,2]
[356026814,1741805440071,-500.0,0.00021917,2]
[356026815,1741805440081,-500.0,0.00021917,2]
[356026816,1741805440091,-545.09,0.00021917,2]
[356026818,1741805440100,-500.0,0.00021917,2]
[356026820,1741805440110,-500.0,0.00021917,2]
[356026821,1741805440120,-500.0,0.00021917,2]
[356026822,1741805440129,-500.0,0.00021917,2]
[356026823,1741805440138,-846.72,0.00021917,2]
[356026824,1741805440148,-500.0,0.00021917,2]
[356026826,1741805440158,-500.0,0.00021917,2]
[356026828,1741805440167,-500.0,0.00021917,2]
[356026830,1741805440177,-866.05,0.00021917,2]
[356026832,1741805440186,-500.0,0.00021917,2]
[356026834,1741805440197,-500.0,0.00021917,2]
[356026835,1741805440206,-500.0,0.00021917,2]
[356026836,1741805440215,-500.0,0.00021917,2]
[356026837,1741805440224,-500.0,0.00021917,2]
[356026838,1741805440234,-2064.27,0.00021917,2]
[356026839,1741805440243,-4044.55,0.00021917,2]
[356026840,1741805440252,-188.91447352,0.00021917,2]
[356026841,1741805440261,-186.13418734,0.00021917,2]
[356026842,1741805440271,-500.0,0.00021917,2]
[356026843,1741805440280,-612.88,0.00021917,2]
[356026844,1741805440290,-500.0,0.00021917,2]
[356026845,1741805440299,-500.0,0.00021917,2]
[356026847,1741805440308,-500.0,0.00021917,2]
[356026848,1741805440318,-500.0,0.00021917,2]
[356026850,1741805440327,-500.0,0.00021917,2]
[356026852,1741805440337,-1538.15,0.00021917,2]
[356026853,1741805440346,-500.0,0.00021917,2]
[356026854,1741805440355,-500.0,0.00021917,2]
[356026855,1741805440365,-500.0,0.00021917,2]
[356026856,1741805440374,-505.49,0.00021917,2]
[356026857,1741805440383,-1471.09,0.00021917,2]
[356026858,1741805440393,-1777.02,0.00021917,2]
[356026859,1741805440402,-790.0,0.00021917,2]
[356026860,1741805440412,-3410.69,0.00021917,2]
[356026861,1741805440421,-500.0,0.00021917,2]
[356026862,1741805440431,-500.0,0.00021917,2]
[356026863,1741805440441,-500.0,0.00021917,2]
[356026864,1741805440450,-500.0,0.00021917,2]
[356026865,1741805440460,-500.0,0.00021917,2]
[356026866,1741805440469,-2067.92,0.00021917,2]
[356026867,1741805440479,-500.0,0.00021917,2]
[356026868,1741805440488,-651.6,0.00021917,2]
[356026869,1741805440498,-500.0,0.00021917,2]
[356026870,1741805440507,-500.0,0.00021917,2]
[356026871,1741805440517,-500.0,0.00021917,2]
[356026872,1741805440527,-542.71,0.00021917,2]
[356026873,1741805440537,-722.89,0.00021917,2]
[356026874,1741805440547,-2912.84,0.00021917,2]
[356026875,1741805440556,-535.57298053,0.00021917,2]
[356026876,1741805440566,-500.0,0.00021917,2]
[356026877,1741805440576,-767.51,0.00021917,2]
[356026878,1741805440585,-500.0,0.00021917,2]
[356026879,1741805440595,-500.0,0.00021917,2]
[356026880,1741805440604,-500.0,0.00021917,2]
[356026881,1741805440614,-3132.76,0.00021917,2]
[356026882,1741805440623,-500.0,0.00021917,2]
[356026883,1741805440633,-500.0,0.00021917,2]
[356026884,1741805440643,-6457.41,0.00021917,2]
[356026885,1741805440652,-870.62,0.00021917,2]
[356026886,1741805440663,-500.0,0.00021917,2]
[356026887,1741805440673,-1342.17,0.00021917,2]
[356026888,1741805440683,-1113.36,0.00021917,2]
[356026889,1741805440692,-500.0,0.00021917,2]
[356026890,1741805440702,-500.0,0.00021917,2]
[356026891,1741805440712,-500.0,0.00021917,2]
[356026892,1741805440721,-483.87516645,0.00021917,2]
[356026893,1741805440731,-500.0,0.00021917,2]
[356026894,1741805440740,-500.0,0.00021917,2]
[356026895,1741805440750,-500.0,0.00021917,2]
[356026896,1741805440759,-500.0,0.00021917,2]
[356026897,1741805440769,-2914.02,0.00021917,2]
[356026898,1741805440779,-1056.01,0.00021917,2]
[356026899,1741805440788,-500.0,0.00021917,2]
[356026900,1741805440798,-1991.41,0.00021917,2]
[356026901,1741805440808,-500.0,0.00021917,2]
[356026902,1741805440817,-500.0,0.00021917,2]
[356026903,1741805440827,-46867.91,0.00021917,2]
[356026904,1741805440836,-500.0,0.00021917,2]
[356026905,1741805440845,-6317.81,0.00021917,2]
[356026906,1741805440855,-6317.81,0.00021917,2]
[356026907,1741805440865,-6317.81,0.00021917,2]
[356026908,1741805440875,-6317.81,0.00021917,2]
[356026909,1741805440884,-6317.81,0.00021917,2]
[356026910,1741805440893,-6317.81,0.00021917,2]
[356026911,1741805440903,-6317.81,0.00021917,2]
[356026912,1741805440912,-6317.81,0.00021917,2]
[356026913,1741805440923,-6317.81,0.00021917,2]
[356026914,1741805440935,-6317.81,0.00021917,2]
[356026915,1741805440946,-6317.81,0.00021917,2]
[356026916,1741805440955,-6317.81,0.00021917,2]
[356026917,1741805440966,-6317.81,0.00021917,2]
[356026918,1741805440976,-6317.81,0.00021917,2]
[356026919,1741805440986,-6317.81,0.00021917,2]
[356026920,1741805440996,-6317.81,0.00021917,2]
[356026921,1741805441007,-6317.81,0.00021917,2]
[356026922,1741805441021,-6317.81,0.00021917,2]
[356026923,1741805441031,-2013.44,0.00021917,2]
[356026924,1741805441040,-500.0,0.00021917,2]
[356026925,1741805441050,-500.0,0.00021917,2]
[356026926,1741805441061,-500.0,0.00021917,2]
[356026927,1741805441070,-500.0,0.00021917,2]
[356026928,1741805441080,-658.3,0.00021917,2]
[356026929,1741805441090,-500.0,0.00021917,2]
[356026930,1741805441099,-500.0,0.00021917,2]
[356026931,1741805441109,-500.0,0.00021917,2]
[356026932,1741805441118,-500.0,0.00021917,2]
[356026933,1741805441128,-500.0,0.00021917,2]
[356026934,1741805441137,-1916.78,0.00021917,2]
[356026935,1741805441147,-791.33,0.00021917,2]
[356026936,1741805441157,-500.0,0.00021917,2]
[356026937,1741805441166,-936.32,0.00021917,2]
[356026938,1741805441175,-500.0,0.00021917,2]
[356026939,1741805441185,-500.0,0.00021917,2]
[356026940,1741805441197,-500.0,0.00021917,2]
[356026941,1741805441206,-500.0,0.00021917,2]
[356026942,1741805441216,-2158.44,0.00021917,2]
[356026943,1741805441226,-500.0,0.00021917,2]
[356026944,1741805441235,-500.0,0.00021917,2]
[356026945,1741805441244,-500.0,0.00021917,2]
[356026946,1741805441255,-500.0,0.00021917,2]
[356026947,1741805441265,-500.0,0.00021917,2]
[356026948,1741805441275,-954.38,0.00021917,2]
[356026949,1741805441284,-500.0,0.00021917,2]
[356026950,1741805441294,-500.0,0.00021917,2]
[356026951,1741805441303,-647.79,0.00021917,2]
[356026952,1741805441313,-526.89475694,0.00021917,2]
[356026953,1741805441322,-423.70646891,0.00021917,2]
[356026954,1741805441332,-5518.61,0.00021917,2]
[356026955,1741805441342,-205.64621019,0.00021917,2]
[356026956,1741805441352,-500.0,0.00021917,2]
[356026957,1741805441362,-500.0,0.00021917,2]
[356026958,1741805441370,-703.5,0.00021917,2]
[356026959,1741805441379,-15224.72,0.00021917,2]
[356026960,1741805441388,-500.0,0.00021917,2]
[356026961,1741805441398,-500.0,0.00021917,2]
[356026962,1741805441600,-500.0,0.00021917,2]
[356026963,1741805441610,-500.0,0.00021917,2]
[356026964,1741805441619,-500.0,0.00021917,2]
[356026965,1741805441629,-1887.09,0.00021917,2]
[356026966,1741805441638,-500.0,0.00021917,2]
[356026967,1741805441647,-3477.8,0.00021917,2]
[356026968,1741805441657,-500.0,0.00021917,2]
[356026969,1741805441667,-500.0,0.00021917,2]
[356026970,1741805441678,-561.54,0.00021917,2]
[356026971,1741805441687,-4307.77,0.00021917,2]
[356026972,1741805441697,-6753.92,0.00021917,2]
[356026973,1741805441706,-1095.21,0.00021917,2]
[356026974,1741805441715,-500.0,0.00021917,2]
[356026975,1741805441724,-500.0,0.00021917,2]
[356026976,1741805441733,-500.0,0.00021917,2]
[356026977,1741805441742,-565.24,0.00021917,2]
[356026978,1741805441752,-500.0,0.00021917,2]
[356026979,1741805441762,-500.0,0.00021917,2]
[356026980,1741805441771,-2499.93,0.00021917,2]
[356026981,1741805441780,-500.0,0.00021917,2]
[356026982,1741805441789,-3351.93,0.00021917,2]
[356026983,1741805441799,-1063.76,0.00021917,2]
[356026984,1741805441808,-737.15,0.00021917,2]
[356026985,1741805441817,-500.0,0.00021917,2]
[356026986,1741805441827,-500.0,0.00021917,2]
[356026987,1741805441836,-500.0,0.00021917,2]
[356026988,1741805441846,-1000.0,0.00021917,7]
[356026989,1741805441855,-500.0,0.00021917,2]
[356026990,1741805441864,-504.22299383,0.00021917,2]
[356026991,1741805441873,-590.05,0.00021917,2]
[356026992,1741805441883,-1525.0,0.00021917,2]
[356026993,1741805441892,-4789.42,0.00021917,2]
[356026994,1741805441901,-909.55,0.00021917,2]
[356026995,1741805441911,-500.0,0.00021917,2]
[356026996,1741805441921,-500.0,0.00021917,2]
[356026997,1741805441933,-2774.51,0.00021917,2]
[356026998,1741805441944,-500.0,0.00021917,2]
[356026999,1741805441954,-788.63,0.00021917,2]
[356027000,1741805441963,-500.0,0.00021917,2]
[356027001,1741805441973,-500.0,0.00021917,2]
[356027002,1741805441982,-500.0,0.00021917,2]
[356027003,1741805441991,-500.0,0.00021917,2]
[356027004,1741805442002,-1295.46,0.00021917,2]
[356027005,1741805442012,-736.94,0.00021917,2]
[356027006,1741805442022,-500.0,0.00021917,2]
[356027007,1741805442031,-500.0,0.00021917,2]
[356027008,1741805442040,-500.0,0.00021917,2]
[356027009,1741805442050,-4584.67,0.00021917,2]
[356027010,1741805442059,-500.0,0.00021917,2]
[356027011,1741805442069,-500.0,0.00021917,2]
[356027012,1741805442079,-500.0,0.00021917,2]
[356027013,1741805442088,-4227.44,0.00021917,2]
[356027014,1741805442097,-500.0,0.00021917,2]
[356027015,1741805442106,-500.0,0.00021917,2]
[356027016,1741805442115,-500.0,0.00021917,2]
[356027017,1741805442125,-500.0,0.00021917,2]
[356027018,1741805442134,-558.57,0.00021917,2]
[356027019,1741805442143,-500.0,0.00021917,2]
[356027020,1741805442153,-500.0,0.00021917,2]
[356027021,1741805442162,-500.0,0.00021917,2]
[356027022,1741805442171,-4433.4,0.00021917,2]
[356027023,1741805442180,-518.85,0.00021917,2]
[356027024,1741805442189,-4433.4,0.00021917,2]
[356027025,1741805442201,-4433.4,0.00021917,2]
[356027026,1741805442211,-4433.4,0.00021917,2]
[356027027,1741805442220,-732.91,0.00021917,2]
[356027028,1741805442230,-4433.4,0.00021917,2]
[356027029,1741805442239,-611.25,0.00021917,2]
[356027030,1741805442249,-4433.4,0.00021917,2]
[356027031,1741805442258,-4433.4,0.00021917,2]
[356027032,1741805442267,-4433.4,0.00021917,2]
[356027033,1741805442276,-4433.4,0.00021917,2]
[356027034,1741805442286,-500.0,0.00021917,2]
[356027035,1741805442295,-4433.4,0.00021917,2]
[356027036,1741805442305,-4433.4,0.00021917,2]
[356027037,1741805442315,-4433.4,0.00021917,2]
[356027038,1741805442325,-4433.4,0.00021917,2]
[356027039,1741805442335,-4433.4,0.00021917,2]
[356027040,1741805442344,-500.0,0.00021917,2]
[356027041,1741805442353,-4433.4,0.00021917,2]
[356027042,1741805442363,-4433.4,0.00021917,2]
[356027043,1741805442372,-804.02,0.00021917,2]
[356027044,1741805442381,-4433.4,0.00021917,2]
[356027045,1741805442391,-4433.4,0.00021917,2]
[356027046,1741805442400,-6490.34,0.00021917,2]
[356027047,1741805442409,-500.0,0.00021917,2]
[356027048,1741805442419,-5196.21,0.00021917,2]
[356027049,1741805442428,-500.0,0.00021917,2]
[356027050,1741805442437,-500.0,0.00021917,2]
[356027051,1741805442448,-500.0,0.00021917,2]
[356027052,1741805442458,-500.0,0.00021917,2]
[356027053,1741805442467,-500.0,0.00021917,2]
[356027054,1741805442476,-500.0,0.00021973,2]
[356027055,1741805442486,-500.0,0.00021973,2]
[356027056,1741805442495,-500.0,0.00021973,2]
[356027057,1741805442505,-608.99559557,0.00021973,2]
[356027058,1741805442515,-500.0,0.00021973,2]
[356027059,1741805442525,-500.0,0.00021973,2]
[356027060,1741805442534,-500.0,0.00021973,2]
[356027061,1741805442544,-500.0,0.00021973,2]
[356027062,1741805442554,-500.0,0.00021973,2]
[356027063,1741805442563,-500.0,0.00021973,2]
[356027064,1741805442572,-500.0,0.00021973,2]
[356027065,1741805442582,-500.0,0.00021973,2]
[356027067,1741805442592,-500.0,0.00021973,2]
[356027068,1741805442601,-500.0,0.00021973,2]
[356027069,1741805442610,-500.0,0.00021973,2]
[356027070,1741805442620,-500.0,0.00021973,2]
[356027071,1741805442629,-558.62141936,0.00021973,2]
[356027072,1741805442639,-500.0,0.00021973,2]
[356027073,1741805442648,-500.0,0.00021973,2]
[356027074,1741805442658,-500.0,0.00021973,2]
[356027075,1741805442668,-500.0,0.00021973,2]
[356027076,1741805442677,-500.0,0.00021973,2]
[356027077,1741805442687,-500.0,0.00021973,2]
[356027078,1741805442697,-500.0,0.00021973,2]
[356027080,1741805442707,-498.29380402,0.00021973,2]
[356027082,1741805442717,-500.0,0.00021973,2]
[356027083,1741805442727,-528.53709032,0.00021973,2]
[356027084,1741805442737,-500.0,0.00021973,2]
[356027085,1741805442747,-500.0,0.00021973,2]
[356027086,1741805442757,-634.62346658,0.00021973,2]
[356027087,1741805442767,-500.0,0.00021973,2]
[356027088,1741805442777,-166.0,0.00022,2]
[356027089,1741805442786,-189.22439916,0.00022091,2]
[356027090,1741805442796,-6317.81,0.000221,2]
[356027091,1741805442806,-4433.4,0.000221,2]
[356027093,1741805442816,-24900.0,0.00022101,2]
[356027094,1741805442825,-500.0,0.00022105,2]
[356027095,1741805442835,-323.28705421,0.00022105,2]
[356027097,1741805442846,-6317.81,0.00022124,2]
[356027099,1741805442856,-6317.81,0.00022124,2]
[356027100,1741805442866,-6317.81,0.00022124,2]
[356027102,1741805442876,-6317.81,0.00022124,2]
[356027103,1741805442885,-6317.93676309,0.00022124,2]
[356027104,1741805442895,-4433.4,0.00022124,2]
[356027105,1741805442905,-4433.4,0.00022124,2]
[356027107,1741805442915,-4433.4,0.00022124,2]
[356027108,1741805442924,-4433.4,0.00022124,2]
[356027109,1741805442937,-4433.48,0.00022124,2]
[356027110,1741805442948,-500.0,0.00022173,2]
[356027111,1741805442958,-500.0,0.00022173,2]
[356027112,1741805442968,-500.0,0.00022173,2]
[356027113,1741805442978,-500.0,0.00022173,2]
[356027114,1741805442988,-500.0,0.00022173,2]
[356027115,1741805442998,-500.0,0.00022173,2]
[356027116,1741805443008,-200.81358535,0.00022173,2]
[356027118,1741805443018,-500.0,0.00022173,2]
[356027119,1741805443028,-469.72807912,0.00022173,2]
[356027121,1741805443037,-500.0,0.00022173,2]
[356027122,1741805443046,-500.0,0.00022173,2]
[356027123,1741805443055,-500.0,0.00022173,2]
[356027124,1741805443064,-54.62832222,0.00022173,2]
[356027125,1741805443355,-445.37167778,0.00022173,2]
[356027126,1741805443367,-500.0,0.00022173,2]
[356027127,1741805443380,-500.0,0.00022173,2]
[356027128,1741805443394,-500.0,0.00022173,2]
[356027129,1741805443406,-557.44440919,0.00022173,2]
[356027130,1741805443418,-500.0,0.00022173,2]
[356027131,1741805443428,-500.0,0.00022173,2]
[356027132,1741805443439,-500.0,0.00022173,2]
[356027133,1741805443452,-500.0,0.00022173,2]
[356027134,1741805443462,-500.0,0.00022173,2]
[356027135,1741805443475,-500.0,0.00022173,2]
[356027136,1741805443487,-500.0,0.00022173,2]
[356027137,1741805443500,-500.0,0.00022173,2]
[356027138,1741805443511,-500.0,0.00022173,2]
[356027139,1741805443525,-500.0,0.00022173,2]
[356027140,1741805443537,-500.0,0.00022191,2]
[356027141,1741805443550,-500.0,0.00022191,2]
[356027142,1741805443563,-500.0,0.00022191,2]
[356027143,1741805443575,-500.0,0.00022191,5]
[356027144,1741805443586,-440.31912621,0.00022191,2]
[356027145,1741805443596,-500.0,0.00022191,2]
[356027146,1741805443607,-925.81,0.00022191,2]
[356027147,1741805443619,-626.42,0.00022191,2]
[356027148,1741805443632,-500.0,0.00022191,2]
[356027149,1741805443645,-500.0,0.00022191,2]
[356027150,1741805443658,-500.0,0.00022191,2]
[356027151,1741805443668,-500.0,0.00022191,2]
[356027152,1741805443680,-500.0,0.00022191,2]
[356027153,1741805443693,-500.0,0.00022191,2]
[356027154,1741805443706,-500.0,0.00022191,2]
[356027155,1741805443721,-500.0,0.00022191,2]
[356027156,1741805443733,-500.0,0.00022191,2]
[356027157,1741805443744,-500.0,0.00022191,2]
[356027158,1741805443756,-500.0,0.00022191,2]
[356027159,1741805443768,-500.0,0.00022191,2]
[356027160,1741805443779,-500.0,0.00022191,2]
[356027161,1741805443791,-500.0,0.00022191,2]
[356027162,1741805443803,-500.0,0.00022191,2]
[356027163,1741805443814,-500.0,0.00022191,2]
[356027164,1741805443825,-500.0,0.00022191,2]
[356027165,1741805443837,-500.0,0.00022191,2]
[356027166,1741805443848,-784.14,0.00022191,2]
[356027167,1741805443860,-500.0,0.00022191,2]
[356027168,1741805443871,-500.0,0.00022191,2]
[356027169,1741805443883,-500.0,0.00022191,2]
[356027170,1741805443894,-789.18,0.00022191,2]
[356027171,1741805443905,-500.0,0.00022191,2]
[356027172,1741805443917,-500.0,0.00022191,2]
[356027173,1741805443936,-500.0,0.00022191,2]
[356027174,1741805443948,-616.62594793,0.00022191,2]
[356027175,1741805443959,-731.1,0.00022191,2]
[356027176,1741805443971,-739.59,0.00022191,2]
[356027177,1741805443984,-1125.06,0.00022191,2]
[356027178,1741805443996,-500.0,0.00022191,2]
[356027179,1741805444008,-500.0,0.00022191,2]
[356027180,1741805444020,-212.4288886,0.00022191,2]
[356027181,1741805444031,-500.0,0.00022191,2]
[356027182,1741805444043,-500.0,0.00022191,2]
[356027183,1741805444054,-500.0,0.00022191,2]
[356027184,1741805444065,-500.0,0.00022191,2]
[356027185,1741805444076,-500.0,0.00022191,2]
[356027186,1741805444087,-500.0,0.00022191,2]
[356027187,1741805444098,-500.0,0.00022191,2]
[356027188,1741805444109,-500.0,0.00022191,2]
[356027189,1741805444120,-1367.7,0.00022191,2]
[356027190,1741805444132,-500.0,0.00022191,2]
[356027191,1741805444144,-754.68,0.00022191,2]
[356027192,1741805444155,-505.72571479,0.00022191,2]
[356027193,1741805444167,-500.0,0.00022191,2]
[356027194,1741805444178,-500.0,0.00022191,2]
[356027195,1741805444189,-500.0,0.00022191,2]
[356027196,1741805444203,-500.0,0.00022191,2]
[356027197,1741805444215,-500.0,0.00022191,2]
[356027198,1741805444227,-500.0,0.00022191,2]
[356027199,1741805444238,-500.0,0.00022191,2]
[356027200,1741805444249,-500.0,0.00022191,2]
[356027201,1741805444260,-1587.03,0.00022191,2]
[356027202,1741805444272,-500.0,0.00022191,2]
[356027204,1741805444284,-500.0,0.00022191,2]
[356027205,1741805444295,-921.95,0.00022191,2]
[356027206,1741805444306,-500.0,0.00022191,2]
[356027207,1741805444316,-635.43484632,0.00022191,2]
[356027208,1741805444328,-1360.85,0.00022191,2]
[356027209,1741805444339,-1504.55,0.00022191,2]
[356027210,1741805444351,-500.0,0.00022191,2]
[356027211,1741805444362,-854.37,0.00022191,2]
[356027212,1741805444374,-500.0,0.00022191,2]
[356027213,1741805444386,-2583.8,0.00022191,2]
[356027214,1741805444397,-500.0,0.00022191,2]
[356027215,1741805444409,-1737.24,0.00022191,2]
[356027216,1741805444421,-500.0,0.00022191,2]
[356027217,1741805444432,-500.0,0.00022191,2]
[356027218,1741805444446,-500.0,0.00022191,2]
[356027219,1741805444457,-500.0,0.00022191,2]
[356027220,1741805444469,-500.0,0.00022191,2]
[356027221,1741805444480,-841.58,0.00022191,2]
[356027222,1741805444492,-500.0,0.00022191,2]
[356027223,1741805444504,-500.0,0.00022191,2]
[356027224,1741805444516,-500.0,0.00022191,2]
[356027225,1741805444528,-500.0,0.00022191,2]
[356027226,1741805444540,-500.0,0.00022191,2]
[356027227,1741805444553,-500.0,0.00022191,2]
[356027228,1741805444565,-500.0,0.00022191,2]
[356027229,1741805444576,-694.74,0.00022191,2]
[356027230,1741805444588,-500.0,0.00022191,2]
[356027231,1741805444600,-500.0,0.00022191,2]
[356027232,1741805444613,-500.0,0.00022191,2]
[356027233,1741805444624,-500.0,0.00022191,2]
[356027234,1741805444636,-500.0,0.00022191,2]
[356027235,1741805444649,-575.76,0.00022191,2]
[356027236,1741805444660,-500.0,0.00022191,2]
[356027237,1741805444672,-500.0,0.00022191,2]
[356027238,1741805444684,-500.0,0.00022191,2]
[356027239,1741805444699,-500.0,0.00022191,2]
[356027240,1741805444710,-659.9,0.00022191,2]
[356027241,1741805444722,-1625.71,0.00022191,2]
[356027242,1741805444734,-500.0,0.00022191,2]
[356027243,1741805444746,-673.24,0.00022191,2]
[356027244,1741805444757,-1030.07,0.00022191,2]
[356027245,1741805444770,-500.0,0.00022191,2]
[356027246,1741805444783,-2568.43,0.00022191,2]
[356027247,1741805444795,-500.0,0.00022191,2]
[356027248,1741805444808,-500.0,0.00022191,2]
[356027249,1741805444819,-500.0,0.00022191,2]
[356027250,1741805444830,-545.09,0.00022191,2]
[356027251,1741805444841,-500.0,0.00022191,2]
[356027252,1741805444853,-500.0,0.00022191,2]
[356027253,1741805444864,-500.0,0.00022191,2]
[356027254,1741805444874,-846.72,0.00022191,2]
[356027255,1741805444885,-500.0,0.00022191,2]
[356027256,1741805444895,-500.0,0.00022191,2]
[356027257,1741805444906,-500.0,0.00022191,2]
[356027258,1741805444916,-866.05,0.00022191,2]
[356027259,1741805444926,-500.0,0.00022191,2]
[356027260,1741805444939,-309.51938918,0.00022191,2]
[356027261,1741805444963,-190.48061082,0.00022191,2]
[356027262,1741805444975,-500.0,0.00022191,2]
[356027263,1741805444985,-500.0,0.00022191,2]
[356027264,1741805444995,-2064.27,0.00022191,2]
[356027265,1741805445006,-4044.55,0.00022191,2]
[356027266,1741805445020,-612.88,0.00022191,2]
[356027267,1741805445030,-500.0,0.00022191,2]
[356027268,1741805445040,-1538.15,0.00022191,2]
[356027269,1741805445050,-500.0,0.00022191,2]
[356027270,1741805445060,-500.0,0.00022191,2]
[356027271,1741805445071,-500.0,0.00022191,2]
[356027272,1741805445080,-505.49,0.00022191,2]
[356027273,1741805445090,-1471.09,0.00022191,2]
[356027274,1741805445100,-1777.02,0.00022191,2]
[356027275,1741805445109,-790.0,0.00022191,2]
[356027276,1741805445119,-3410.69,0.00022191,2]
[356027277,1741805445129,-500.0,0.00022191,2]
[356027278,1741805445139,-500.0,0.00022191,2]
[356027279,1741805445148,-500.0,0.00022191,2]
[356027280,1741805445158,-500.0,0.00022191,2]
[356027281,1741805445167,-2067.92,0.00022191,2]
[356027282,1741805445177,-500.0,0.00022191,2]
[356027283,1741805445187,-651.6,0.00022191,2]
[356027284,1741805445199,-500.0,0.00022191,2]
[356027285,1741805445578,-500.0,0.00022191,2]
[356027286,1741805445597,-542.71,0.00022191,2]